fUSD/lending_fUSD_20260620
["ID","MTS","AMOUNT","RATE_DAILY","PERIOD"]
[425777274,1781887911000,-1265.07,0.0003578,30]
[425777275,1781887911000,-500.0,0.0003578,30]
[425777276,1781887911000,-500.0,0.0003578,30]
[425777277,1781887911000,-500.0,0.0003578,30]
[425777278,1781887911000,-693.9,0.0003578,30]
[425777279,1781887911000,-510.64,0.0003578,30]
[425777281,1781887911000,-2137.39,0.0003578,30]
[425777280,1781887911000,-500.0,0.0003578,30]
[425777282,1781887911000,-1172.01,0.0003578,30]
[425777283,1781887911000,-1423.78,0.0003578,30]
[425777284,1781887911000,-500.0,0.0003578,30]
[425777285,1781887911000,-179.87657687,0.0003578,30]
[425777287,1781887912000,-500.0,0.0003578,30]
[425777286,1781887912000,-500.0,0.0003578,30]
[425777288,1781887912000,-500.0,0.0003578,30]
[425777289,1781887912000,-500.0,0.0003578,30]
[425777290,1781887912000,-500.0,0.0003578,30]
[425777291,1781887912000,-500.0,0.0003578,30]
[425777292,1781887912000,-1391.17,0.0003578,30]
[425777293,1781887912000,-503.84667026,0.0003578,30]
[425777301,1781887912000,-534.92,0.0003578,30]
[425777296,1781887912000,-592.13,0.0003578,30]
[425777295,1781887912000,-721.41,0.0003578,30]
[425777298,1781887912000,-500.0,0.0003578,30]
[425777297,1781887912000,-857.32,0.0003578,30]
[425777299,1781887912000,-500.0,0.0003578,30]
[425777300,1781887912000,-500.0,0.0003578,30]
[425777302,1781887912000,-961.56,0.0003578,30]
[425777294,1781887912000,-1656.0,0.0003578,30]
[425777310,1781887913000,-1427.66,0.0003578,30]
[425777303,1781887913000,-500.0,0.0003578,30]
[425777304,1781887913000,-500.0,0.0003578,30]
[425777305,1781887913000,-1123.62,0.0003578,30]
[425777306,1781887913000,-3646.26,0.0003578,30]
[425777308,1781887913000,-500.0,0.0003578,30]
[425777307,1781887913000,-500.0,0.0003578,30]
[425777309,1781887913000,-500.0,0.0003578,30]
[425777312,1781887913000,-711.69,0.0003578,30]
[425777311,1781887913000,-631.67,0.0003578,30]
[425777313,1781887913000,-500.0,0.0003578,30]
[425777314,1781887913000,-562.71,0.0003578,30]
[425777315,1781887913000,-500.0,0.0003578,30]
[425777317,1781887913000,-711.87,0.0003578,30]
[425777316,1781887913000,-500.0,0.0003578,30]
[425777319,1781887913000,-500.0,0.00035835,30]
[425777318,1781887913000,-191.9,0.000358,30]
[425777320,1781887913000,-500.0,0.00035835,30]
[425777322,1781887914000,-500.0,0.00035835,30]
[425777323,1781887914000,-505.74308461,0.00035835,30]
[425777324,1781887914000,-253.3635656,0.00035835,30]
[425777326,1781887914000,-467.91211953,0.00035835,30]
[425777325,1781887914000,-619.00862667,0.00035835,30]
[425777327,1781887914000,-500.0,0.00035835,30]
[425777329,1781887914000,-902.01,0.00035835,30]
[425777321,1781887914000,-500.0,0.00035835,30]
[425777331,1781887914000,-500.0,0.00035835,30]
[425777330,1781887914000,-255.04189503,0.00035835,30]
[425777332,1781887914000,-500.0,0.00035835,30]
[425777333,1781887914000,-500.0,0.00035835,30]
[425777334,1781887914000,-500.0,0.00035835,30]
[425777335,1781887914000,-502.55005645,0.00035835,30]
[425777336,1781887914000,-500.0,0.00035835,30]
[425777337,1781887914000,-500.0,0.00035835,30]
[425777328,1781887914000,-500.0,0.00035835,30]
[425777339,1781887915000,-500.0,0.00035835,30]
[425777338,1781887915000,-500.0,0.00035835,30]
[425777340,1781887915000,-500.0,0.00035835,30]
[425777341,1781887915000,-625.28,0.00035835,30]
[425777342,1781887915000,-577.1,0.00035835,30]
[425777343,1781887915000,-500.0,0.00035835,30]
[425777344,1781887915000,-500.0,0.00035835,30]
[425777345,1781887915000,-500.0,0.00035835,30]
[425777347,1781887915000,-500.0,0.00035835,30]
[425777349,1781887915000,-661.85,0.00035835,30]
[425777348,1781887915000,-500.0,0.00035835,30]
[425777350,1781887915000,-500.0,0.00035835,30]
[425777351,1781887915000,-500.0,0.00035835,30]
[425777352,1781887915000,-500.0,0.00035835,30]
[425777353,1781887915000,-537.63,0.00035835,30]
[425777346,1781887915000,-1471.17,0.00035835,30]
[425777362,1781887916000,-500.0,0.00035835,30]
[425777356,1781887916000,-500.0,0.00035835,30]
[425777355,1781887916000,-999.39,0.00035835,30]
[425777358,1781887916000,-500.0,0.00035835,30]
[425777357,1781887916000,-504.76373018,0.00035835,30]
[425777360,1781887916000,-1241.89,0.00035835,30]
[425777359,1781887916000,-500.0,0.00035835,30]
[425777361,1781887916000,-500.0,0.00035835,30]
[425777354,1781887916000,-500.0,0.00035835,30]
[425777364,1781887916000,-500.0,0.00035835,30]
[425777371,1781887916000,-500.0,0.00035835,30]
[425777370,1781887916000,-1071.98,0.00035835,30]
[425777368,1781887916000,-694.32,0.00035835,30]
[425777363,1781887916000,-500.0,0.00035835,30]
[425777367,1781887916000,-500.0,0.00035835,30]
[425777366,1781887916000,-500.0,0.00035835,30]
[425777365,1781887916000,-1441.61,0.00035835,30]
[425777369,1781887916000,-500.0,0.00035835,30]
[425777378,1781887917000,-500.0,0.00035835,30]
[425777372,1781887917000,-768.18,0.00035835,30]
[425777373,1781887917000,-1111.1,0.00035835,30]
[425777374,1781887917000,-500.0,0.00035835,30]
[425777375,1781887917000,-500.0,0.00035835,30]
[425777376,1781887917000,-1407.87,0.00035835,30]
[425777377,1781887917000,-500.0,0.00035835,30]
[425777379,1781887917000,-500.0,0.00035835,30]
[425777380,1781887917000,-884.27,0.00035835,30]
[425777381,1781887917000,-802.05,0.00035835,30]
[425777382,1781887917000,-500.0,0.00035835,30]
[425777383,1781887917000,-500.0,0.00035835,30]
[425777384,1781887917000,-500.0,0.00035835,30]
[425777386,1781887917000,-500.0,0.00035835,30]
[425777385,1781887917000,-1677.91,0.00035835,30]
[425777388,1781887917000,-500.0,0.00035835,30]
[425777387,1781887917000,-500.0,0.00035835,30]
[425777389,1781887918000,-500.0,0.00035835,30]
[425777390,1781887918000,-500.0,0.00035835,30]
[425777391,1781887918000,-500.0,0.00035835,30]
[425777393,1781887918000,-500.0,0.00035835,30]
[425777392,1781887918000,-636.34,0.00035835,30]
[425777395,1781887918000,-500.0,0.00035835,30]
[425777394,1781887918000,-500.0,0.00035835,30]
[425777397,1781887918000,-563.16,0.00035835,30]
[425777406,1781887918000,-500.0,0.00035835,30]
[425777398,1781887918000,-808.38,0.00035835,30]
[425777399,1781887918000,-500.0,0.00035835,30]
[425777400,1781887918000,-500.0,0.00035835,30]
[425777401,1781887918000,-500.0,0.00035835,30]
[425777402,1781887918000,-586.92,0.00035835,30]
[425777403,1781887918000,-793.97,0.00035835,30]
[425777404,1781887918000,-500.0,0.00035835,30]
[425777405,1781887918000,-517.68,0.00035835,30]
[425777396,1781887918000,-500.0,0.00035835,30]
[425777412,1781887919000,-559.72,0.00035835,30]
[425777413,1781887919000,-500.0,0.00035835,30]
[425777410,1781887919000,-500.0,0.00035835,30]
[425777407,1781887919000,-502.59,0.00035835,30]
[425777415,1781887919000,-545.05,0.00035835,30]
[425777409,1781887919000,-588.77,0.00035835,30]
[425777411,1781887919000,-1622.56,0.00035835,30]
[425777414,1781887919000,-500.0,0.00035835,30]
[425777408,1781887919000,-500.0,0.00035835,30]
[425777417,1781887919000,-500.0,0.00035835,30]
[425777424,1781887919000,-500.0,0.00035835,30]
[425777423,1781887919000,-500.0,0.00035835,30]
[425777422,1781887919000,-500.0,0.00035835,30]
[425777416,1781887919000,-500.0,0.00035835,30]
[425777420,1781887919000,-500.0,0.00035835,30]
[425777419,1781887919000,-500.0,0.00035835,30]
[425777418,1781887919000,-500.0,0.00035835,30]
[425777421,1781887919000,-500.0,0.00035835,30]
[425777425,1781887920000,-500.0,0.00035835,30]
[425777426,1781887920000,-500.0,0.00035835,30]
[425777427,1781887920000,-631.31,0.00035835,30]
[425777428,1781887920000,-563.83,0.00035835,30]
[425777429,1781887920000,-677.13,0.00035835,30]
[425777432,1781887920000,-719.45,0.00035835,30]
[425777430,1781887920000,-500.0,0.00035835,30]
[425777434,1781887920000,-997.89,0.00035835,30]
[425777433,1781887920000,-786.02,0.00035835,30]
[425777435,1781887920000,-395.26311999,0.00035835,30]
[425777437,1781887920000,-579.64,0.00035835,30]
[425777436,1781887920000,-500.0,0.00035835,30]
[425777438,1781887920000,-500.0,0.00035835,30]
[425777439,1781887920000,-1595.76,0.00035835,30]
[425777431,1781887920000,-873.12,0.00035835,30]
[425777440,1781887921000,-500.0,0.00035835,30]
[425777441,1781887921000,-500.0,0.00035835,30]
[425777442,1781887921000,-500.0,0.00035835,30]
[425777443,1781887921000,-544.21,0.00035835,30]
[425777444,1781887921000,-500.0,0.00035835,30]
[425777445,1781887921000,-500.0,0.00035835,30]
[425777446,1781887921000,-549.11,0.00035835,30]
[425777447,1781887921000,-596.28305196,0.00035835,30]
[425777450,1781887921000,-500.0,0.00035835,30]
[425777449,1781887921000,-1173.72,0.00035835,30]
[425777451,1781887921000,-500.0,0.00035835,30]
[425777452,1781887921000,-500.0,0.00035835,30]
[425777453,1781887921000,-500.0,0.00035835,30]
[425777454,1781887921000,-500.0,0.00035835,30]
[425777455,1781887921000,-500.0,0.00035835,30]
[425777448,1781887921000,-500.0,0.00035835,30]
[425777456,1781887922000,-742.76,0.00035835,30]
[425777458,1781887922000,-1217.88,0.00035835,30]
[425777457,1781887922000,-500.0,0.00035835,30]
[425777459,1781887922000,-498.0,0.00035835,30]
[425777460,1781887922000,-500.0,0.00035835,30]
[425777461,1781887922000,-500.0,0.00035835,30]
[425777463,1781887922000,-500.0,0.00035835,30]
[425777462,1781887922000,-779.91,0.00035835,30]
[425777465,1781887922000,-500.0,0.00035835,30]
[425777466,1781887922000,-500.0,0.00035835,30]
[425777467,1781887922000,-500.0,0.00035835,30]
[425777468,1781887922000,-162.54457623,0.00035835,30]
[425777469,1781887922000,-1153.53,0.00035835,30]
[425777471,1781887922000,-500.0,0.00035835,30]
[425777470,1781887922000,-500.0,0.00035835,30]
[425777464,1781887922000,-511.18,0.00035835,30]
[425777472,1781887923000,-2382.02,0.00035835,30]
[425777473,1781887923000,-500.0,0.00035835,30]
[425777474,1781887923000,-500.0,0.00035835,30]
[425777478,1781887923000,-500.0,0.00035835,30]
[425777476,1781887923000,-1320.43,0.00035835,30]
[425777475,1781887923000,-500.0,0.00035835,30]
[425777477,1781887923000,-514.74,0.00035835,30]
[425777480,1781887923000,-500.0,0.00035835,30]
[425777485,1781887923000,-500.0,0.00035835,30]
[425777481,1781887923000,-981.85,0.00035835,30]
[425777483,1781887923000,-1356.93,0.00035835,30]
[425777482,1781887923000,-500.0,0.00035835,30]
[425777484,1781887923000,-500.0,0.00035835,30]
[425777486,1781887923000,-500.0,0.00035835,30]
[425777488,1781887923000,-758.06,0.00035835,30]
[425777487,1781887923000,-500.0,0.00035835,30]
[425777479,1781887923000,-500.0,0.00035835,30]
[425777489,1781887924000,-568.92201109,0.00035835,30]
[425777490,1781887924000,-769.14,0.00035835,30]
[425777491,1781887924000,-500.0,0.00035835,30]
[425777492,1781887924000,-1329.2,0.00035835,30]
[425777493,1781887924000,-500.0,0.00035835,30]
[425777495,1781887924000,-500.0,0.00035835,30]
[425777494,1781887924000,-544.12,0.00035835,30]
[425777496,1781887924000,-500.0,0.00035835,30]
[425777505,1781887924000,-182.57941132,0.00035835,30]
[425777498,1781887924000,-527.41,0.00035835,30]
[425777500,1781887924000,-500.0,0.00035835,30]
[425777499,1781887924000,-500.0,0.00035835,30]
[425777502,1781887924000,-352.04,0.00035835,30]
[425777501,1781887924000,-536.88,0.00035835,30]
[425777503,1781887924000,-500.0,0.00035835,30]
[425777504,1781887924000,-626.44345645,0.00035835,30]
[425777497,1781887924000,-641.52,0.00035835,30]
[425777511,1781887925000,-531.64,0.00035835,30]
[425777509,1781887925000,-500.0,0.00035835,30]
[425777510,1781887925000,-500.0,0.00035835,30]
[425777513,1781887925000,-500.0,0.00035835,30]
[425777508,1781887925000,-500.0,0.00035835,30]
[425777506,1781887925000,-508.71,0.00035835,30]
[425777507,1781887925000,-500.0,0.00035835,30]
[425777512,1781887925000,-500.0,0.00035835,30]
[425777521,1781887925000,-500.0,0.00035835,30]
[425777515,1781887925000,-365.36,0.00035835,30]
[425777516,1781887925000,-938.69,0.00035835,30]
[425777517,1781887925000,-505.34970253,0.00035835,30]
[425777518,1781887925000,-578.3,0.00035835,30]
[425777520,1781887925000,-500.0,0.00035835,30]
[425777519,1781887925000,-500.0,0.00035835,30]
[425777522,1781887925000,-500.0,0.00035835,30]
[425777514,1781887925000,-500.0,0.00035835,30]
[425777530,1781887926000,-500.0,0.00035835,30]
[425777523,1781887926000,-500.0,0.00035835,30]
[425777524,1781887926000,-1259.59,0.00035835,30]
[425777527,1781887926000,-500.0,0.00035835,30]
[425777526,1781887926000,-568.98,0.00035835,30]
[425777528,1781887926000,-500.0,0.00035835,30]
[425777529,1781887926000,-1095.52,0.00035835,30]
[425777525,1781887926000,-500.0,0.00035835,30]
[425777531,1781887926000,-576.54,0.00035835,30]
[425777534,1781887926000,-808.45,0.00035835,30]
[425777533,1781887926000,-500.0,0.00035835,30]
[425777535,1781887926000,-500.0,0.00035835,30]
[425777537,1781887926000,-500.0,0.00035835,30]
[425777538,1781887926000,-809.71,0.00035835,30]
[425777536,1781887926000,-567.37,0.00035835,30]
[425777532,1781887926000,-500.0,0.00035835,30]
[425777539,1781887927000,-879.94,0.00035835,30]
[425777540,1781887927000,-923.44,0.00035835,30]
[425777542,1781887927000,-580.64,0.00035835,30]
[425777541,1781887927000,-500.0,0.00035835,30]
[425777543,1781887927000,-500.0,0.00035835,30]
[425777545,1781887927000,-500.0,0.00035835,30]
[425777544,1781887927000,-500.0,0.00035835,30]
[425777546,1781887927000,-500.0,0.00035835,120]
[425777548,1781887927000,-500.0,0.00035835,30]
[425777549,1781887927000,-500.0,0.00035835,30]
[425777550,1781887927000,-500.0,0.00035835,30]
[425777551,1781887927000,-747.58,0.00035835,30]
[425777552,1781887927000,-569.82,0.00035835,30]
[425777553,1781887927000,-523.76184257,0.00035835,30]
[425777554,1781887927000,-1017.11,0.00035835,30]
[425777547,1781887927000,-500.0,0.00035835,30]
[425777555,1781887927000,-500.0,0.00035835,30]
[425777561,1781887928000,-500.0,0.00035835,30]
[425777562,1781887928000,-500.0,0.00035835,30]
[425777560,1781887928000,-500.0,0.00035835,30]
[425777557,1781887928000,-674.8,0.00035835,30]
[425777558,1781887928000,-500.0,0.00035835,30]
[425777556,1781887928000,-500.0,0.00035835,30]
[425777559,1781887928000,-500.0,0.00035835,30]
[425777563,1781887928000,-500.0,0.00035835,30]
[425777566,1781887928000,-500.0,0.00035835,30]
[425777564,1781887928000,-613.4,0.00035835,30]
[425777567,1781887928000,-500.0,0.00035835,30]
[425777568,1781887928000,-500.0,0.00035835,30]
[425777569,1781887928000,-599.46,0.00035835,30]
[425777570,1781887928000,-500.0,0.00035835,30]
[425777572,1781887928000,-1060.51,0.00035835,30]
[425777571,1781887928000,-500.0,0.00035835,30]
[425777565,1781887928000,-500.0,0.00035835,30]
[425777574,1781887929000,-500.0,0.00035835,30]
[425777573,1781887929000,-500.0,0.00035835,30]
[425777575,1781887929000,-500.0,0.00035835,30]
[425777577,1781887929000,-821.24,0.00035835,30]
[425777576,1781887929000,-500.0,0.00035835,30]
[425777578,1781887929000,-588.74,0.00035835,30]
[425777580,1781887929000,-500.0,0.00035835,30]
[425777581,1781887929000,-725.68,0.00035835,30]
[425777583,1781887929000,-500.0,0.00035835,30]
[425777582,1781887929000,-500.0,0.00035835,30]
[425777584,1781887929000,-996.41,0.00035835,30]
[425777585,1781887929000,-500.0,0.00035835,30]
[425777579,1781887929000,-540.59,0.00035835,30]
[425777591,1781887930000,-517.19,0.00035835,30]
[425777586,1781887930000,-1684.99,0.00035835,30]
[425777587,1781887930000,-483.04,0.00035835,30]
[425777588,1781887930000,-500.0,0.00035835,30]
[425777589,1781887930000,-500.0,0.00035835,30]
[425777590,1781887930000,-500.0,0.00035835,30]
[425777592,1781887930000,-500.0,0.00035835,30]
[425777593,1781887930000,-554.08,0.00035835,30]
[425777595,1781887930000,-500.0,0.00035835,30]
[425777594,1781887930000,-500.0,0.00035835,30]
[425777597,1781887930000,-500.0,0.00035835,30]
[425777596,1781887930000,-1338.57,0.00035835,30]
[425777598,1781887930000,-202.49,0.00035835,30]
[425777600,1781887930000,-500.0,0.00035835,30]
[425777599,1781887930000,-500.0,0.00035835,30]
[425777601,1781887930000,-569.17,0.00035835,30]
[425777602,1781887931000,-500.0,0.00035835,30]
[425777603,1781887931000,-500.0,0.00035835,30]
[425777604,1781887931000,-500.0,0.00035835,30]
[425777605,1781887931000,-500.0,0.00035835,30]
[425777606,1781887931000,-500.0,0.00035835,30]
[425777607,1781887931000,-192.67,0.00035835,30]
[425777608,1781887931000,-500.0,0.00035835,30]
[425777609,1781887931000,-662.39,0.00035835,30]
[425777611,1781887931000,-500.0,0.00035835,30]
[425777610,1781887931000,-500.0,0.00035835,30]
[425777613,1781887931000,-500.0,0.00035835,30]
[425777612,1781887931000,-500.0,0.00035835,30]
[425777614,1781887931000,-934.77,0.00035835,30]
[425777615,1781887931000,-500.0,0.00035835,30]
[425777616,1781887931000,-1014.09,0.00035835,30]
[425777617,1781887931000,-500.0,0.00035835,30]
[425777618,1781887932000,-1286.29,0.00035835,30]
[425777619,1781887932000,-833.48,0.00035835,30]
[425777621,1781887932000,-500.0,0.00035835,30]
[425777620,1781887932000,-507.51,0.00035835,30]
[425777622,1781887932000,-500.0,0.00035835,30]
[425777623,1781887932000,-500.0,0.00035835,30]
[425777624,1781887932000,-500.0,0.00035835,30]
[425777625,1781887932000,-500.0,0.00035835,30]
[425777626,1781887932000,-500.0,0.00035835,30]
[425777627,1781887932000,-759.52,0.00035835,30]
[425777629,1781887932000,-547.43,0.00035835,30]
[425777628,1781887932000,-627.51,0.00035835,30]
[425777631,1781887932000,-500.0,0.00035835,30]
[425777630,1781887932000,-500.0,0.00035835,30]
[425777632,1781887932000,-548.15,0.00035835,30]
[425777633,1781887932000,-500.0,0.00035835,30]
[425777634,1781887933000,-434.30454203,0.00035835,30]
[425777635,1781887933000,-544.23,0.00035835,30]
[425777637,1781887933000,-500.0,0.00035835,30]
[425777636,1781887933000,-547.88,0.00035835,30]
[425777638,1781887933000,-500.0,0.00035835,30]
[425777640,1781887933000,-500.0,0.00035835,30]
[425777639,1781887933000,-507.35941305,0.00035835,30]
[425777642,1781887933000,-500.0,0.00035835,30]
[425777641,1781887933000,-1348.31,0.00035835,30]
[425777643,1781887933000,-2045.07,0.00035835,30]
[425777644,1781887933000,-500.0,0.00035835,30]
[425777645,1781887933000,-664.75,0.00035835,30]
[425777646,1781887933000,-500.0,0.00035835,30]
[425777647,1781887933000,-500.0,0.00035835,30]
[425777648,1781887933000,-537.97,0.00035835,30]
[425777649,1781887933000,-500.0,0.00035835,30]
[425777650,1781887934000,-500.0,0.00035835,30]
[425777652,1781887934000,-500.0,0.00035835,30]
[425777651,1781887934000,-500.0,0.00035835,30]
[425777653,1781887934000,-500.0,0.00035835,30]
[425777654,1781887934000,-701.68,0.00035835,30]
[425777655,1781887934000,-879.59,0.00035835,30]
[425777657,1781887934000,-500.0,0.00035835,30]
[425777664,1781887934000,-500.0,0.00035835,30]
[425777658,1781887934000,-1145.24,0.00035835,30]
[425777659,1781887934000,-500.0,0.00035835,30]
[425777660,1781887934000,-906.68,0.00035835,30]
[425777662,1781887934000,-634.83,0.00035835,30]
[425777661,1781887934000,-500.0,0.00035835,30]
[425777663,1781887934000,-500.0,0.00035835,30]
[425777665,1781887934000,-500.0,0.00035835,30]
[425777656,1781887934000,-500.0,0.00035835,30]
[425777668,1781887935000,-594.02,0.00035835,30]
[425777667,1781887935000,-500.0,0.00035835,30]
[425777670,1781887935000,-500.0,0.00035835,30]
[425777669,1781887935000,-780.74,0.00035835,30]
[425777671,1781887935000,-500.0,0.00035835,30]
[425777673,1781887935000,-500.0,0.00035835,30]
[425777672,1781887935000,-743.84,0.00035835,30]
[425777666,1781887935000,-500.0,0.00035835,30]
[425777674,1781887935000,-500.0,0.00035835,30]
[425777676,1781887935000,-500.0,0.00035835,30]
[425777678,1781887935000,-2492.23,0.00035835,30]
[425777677,1781887935000,-1013.87,0.00035835,30]
[425777679,1781887935000,-500.0,0.00035835,30]
[425777681,1781887935000,-500.0,0.00035835,30]
[425777680,1781887935000,-577.97,0.00035835,30]
[425777682,1781887935000,-1013.66,0.00035835,30]
[425777675,1781887935000,-500.0,0.00035835,30]
[425777683,1781887936000,-624.64577153,0.00035835,30]
[425777684,1781887936000,-952.89,0.00035835,30]
[425777685,1781887936000,-574.37,0.00035835,30]
[425777686,1781887936000,-625.73619487,0.00035835,30]
[425777687,1781887936000,-1109.66,0.00035835,30]
[425777689,1781887936000,-2528.15,0.00035835,30]
[425777688,1781887936000,-723.87,0.00035835,30]
[425777691,1781887936000,-695.27,0.00035835,30]
[425777692,1781887936000,-636.13,0.00035835,30]
[425777694,1781887936000,-277.26628148,0.00035835,30]
[425777693,1781887936000,-1182.85,0.00035835,30]
[425777696,1781887936000,-500.0,0.00035835,30]
[425777695,1781887936000,-620.19,0.00035835,30]
[425777697,1781887936000,-628.07,0.00035835,30]
[425777698,1781887936000,-722.6,0.00035835,30]
[425777690,1781887936000,-500.0,0.00035835,30]
[425777699,1781887937000,-918.47,0.00035835,30]
[425777700,1781887937000,-662.33,0.00035835,30]
[425777703,1781887937000,-500.0,0.00035835,30]
[425777701,1781887937000,-500.0,0.00035835,30]
[425777702,1781887937000,-900.24,0.00035835,30]
[425777704,1781887937000,-500.0,0.00035835,30]
[425777706,1781887937000,-500.0,0.00035835,30]
[425777711,1781887937000,-500.0,0.00035835,30]
[425777707,1781887937000,-662.63,0.00035835,30]
[425777708,1781887937000,-500.0,0.00035835,30]
[425777709,1781887937000,-255.76,0.00035835,30]
[425777710,1781887937000,-643.62,0.00035835,30]
[425777712,1781887937000,-2588.84,0.00035835,30]
[425777713,1781887937000,-500.0,0.00035835,30]
[425777705,1781887937000,-636.4,0.00035835,30]
[425777714,1781887938000,-500.0,0.00035835,30]
[425777715,1781887938000,-500.0,0.00035835,30]
[425777716,1781887938000,-947.68,0.00035835,30]
[425777717,1781887938000,-500.32217517,0.00035835,30]
[425777719,1781887938000,-970.43,0.00035835,30]
[425777721,1781887938000,-1083.37,0.00035835,30]
[425777720,1781887938000,-658.41,0.00035835,30]
[425777722,1781887938000,-507.94784846,0.00035835,30]
[425777718,1781887938000,-598.87,0.00035835,30]
[425777735,1781887939000,-846.43,0.00035835,30]
[425777729,1781887939000,-650.2,0.00035835,30]
[425777731,1781887939000,-500.0,0.00035835,30]
[425777730,1781887939000,-500.0,0.00035835,30]
[425777732,1781887939000,-500.0,0.00035835,30]
[425777734,1781887939000,-500.0,0.00035835,30]
[425777736,1781887939000,-585.97,0.00035835,30]
[425777733,1781887939000,-1487.57,0.00035835,30]
[425777738,1781887939000,-1580.21,0.00035835,30]
[425777739,1781887939000,-678.01,0.00035835,30]
[425777740,1781887939000,-500.0,0.00035835,30]
[425777744,1781887939000,-5570.48,0.00035835,30]
[425777741,1781887939000,-697.26,0.00035835,30]
[425777742,1781887939000,-500.0,0.00035835,30]
[425777743,1781887939000,-500.0,0.00035835,30]
[425777737,1781887939000,-1066.11,0.00035835,30]
[425777745,1781887940000,-500.0,0.00035835,30]
[425777746,1781887940000,-509.69,0.00035835,30]
[425777747,1781887940000,-500.0,0.00035835,30]
[425777748,1781887940000,-500.0,0.00035835,30]
[425777750,1781887940000,-500.0,0.00035835,30]
[425777749,1781887940000,-500.0,0.00035835,30]
[425777751,1781887940000,-500.0,0.00035835,30]
[425777752,1781887940000,-500.0,0.00035835,30]
[425777755,1781887940000,-651.01,0.00035835,30]
[425777754,1781887940000,-500.0,0.00035835,30]
[425777756,1781887940000,-734.22,0.00035835,30]
[425777757,1781887940000,-697.49,0.00035835,30]
[425777758,1781887940000,-1473.35,0.00035835,30]
[425777759,1781887940000,-1586.38,0.00035835,30]
[425777760,1781887940000,-755.8,0.00035835,30]
[425777753,1781887940000,-500.0,0.00035835,30]
[425777766,1781887941000,-505.49,0.00035835,30]
[425777761,1781887941000,-500.0,0.00035835,30]
[425777762,1781887941000,-522.21,0.00035835,30]
[425777763,1781887941000,-500.0,0.00035835,30]
[425777764,1781887941000,-860.38,0.00035835,30]
[425777765,1781887941000,-741.41,0.00035835,30]
[425777767,1781887941000,-500.0,0.00035835,30]
[425777772,1781887941000,-500.0,0.00035835,30]
[425777769,1781887941000,-500.0,0.00035835,30]
[425777771,1781887941000,-500.0,0.00035835,30]
[425777770,1781887941000,-1064.26,0.00035835,30]
[425777773,1781887941000,-500.0,0.00035835,30]
[425777776,1781887941000,-500.0,0.00035835,30]
[425777774,1781887941000,-500.0,0.00035835,30]
[425777775,1781887941000,-512.48,0.00035835,30]
[425777768,1781887941000,-1437.17,0.00035835,30]
[425777778,1781887942000,-500.0,0.00035835,30]
[425777779,1781887942000,-500.0,0.00035835,30]
[425777781,1781887942000,-1376.12,0.00035835,30]